fUST/lending_fUST_20250910
["ID","MTS","AMOUNT","RATE_DAILY","PERIOD"]
[384655306,1757503846360,-233.08191698,0.00014925,2]
[384655307,1757503846369,-160.0,0.00015,2]
[384655308,1757503846379,-3836.7,0.00015068,2]
[384655309,1757503846388,-368.104944,0.00015068,2]
[384655310,1757503846397,-1427.4698685,0.00015324,2]
[384655311,1757503846406,-1069.3560278,0.00015324,2]
[384655312,1757503846416,-3836.7,0.00015342,2]
[384655313,1757503846425,-720.0,0.00015368,2]
[384655314,1757503846434,-3836.7,0.00015616,2]
[384655315,1757503846443,-318.5115803,0.00015709,2]
[384655316,1757503846452,-238.6055817,0.00015709,2]
[384655317,1757503846462,-234.2784914,0.00015734,2]
[384655318,1757503846471,-3836.7,0.0001589,2]
[384655319,1757503846480,-3836.7,0.00016164,2]
[384655321,1757503846489,-653.09367127,0.000164,2]
[384655322,1757503846499,-150.0,0.00016438,2]
[384655324,1757503846508,-520.0,0.00016438,3]
[384655325,1757503846517,-520.0,0.00016438,3]
[384655326,1757503846526,-520.0,0.00016438,3]
[384655327,1757503846535,-520.0,0.00016438,3]
[384655328,1757503846544,-485.30819344,0.00016438,3]
[384655329,1757503846554,-317.1,0.00016438,2]
[384655330,1757503846563,-3836.7,0.00016438,2]
[384655331,1757503846572,-3836.7,0.00016712,2]
[384655332,1757503846582,-501.24484171,0.0001678,2]
[384655333,1757503846591,-864.0,0.00016905,2]
[384655334,1757503846601,-214.93727,0.00016986,2]
[384655335,1757503846611,-153.526621,0.00016986,2]
[384655336,1757503846620,-3836.7,0.00016986,2]
[384655337,1757503846629,-4750.7528091,0.00017,2]
[384655338,1757503846638,-317.1,0.00017216,2]
[384655339,1757503846647,-3836.7,0.0001726,2]
[384655340,1757503846656,-3836.7,0.00017534,2]
[384655341,1757503846665,-2100.63381297,0.000176,2]
[384655342,1757503846674,-3836.7,0.00017808,2]
[384655343,1757503846683,-234.2784914,0.0001787,2]
[384655344,1757503846693,-136444.68469432,0.0001799,2]
[384655345,1757503846703,-409.0,0.00017992,2]
[384655346,1757503846712,-317.1,0.00017995,2]
[384655347,1757503846721,-131888.20709815,0.00018,2]
[384655348,1757503846730,-3836.7,0.00018082,2]
[384655349,1757503846739,-3836.7,0.00018356,2]
[384655350,1757503846748,-368.104944,0.00018493,2]
[384655351,1757503846757,-3836.7,0.0001863,2]
[384655352,1757503846767,-151.0,0.000187,2]
[384655353,1757503846776,-317.1,0.00018773,2]
[384655354,1757503846785,-154.383,0.00018903,2]
[384655355,1757503846794,-3836.7,0.00018904,2]
[384655356,1757503846804,-214.93727,0.00018984,2]
[384655357,1757503846813,-153.526621,0.00018984,2]
[384655358,1757503846828,-3836.7,0.00019178,2]
[384655359,1757503846837,-765.87865389,0.00019209,2]
[384655360,1757503846847,-3836.7,0.00019452,2]
[384655361,1757503846855,-3000.0,0.0001952,2]
[384655362,1757503846866,-317.1,0.00019551,2]
[384655363,1757503846875,-3836.7,0.00019726,2]
[384655364,1757503846884,-13721.67567059,0.000199,2]
[384655365,1757503846893,-151.0,0.0002,3]
[384655366,1757503846903,-4000.0,0.0002,4]
[384655367,1757503846912,-3836.78034026,0.0002,2]
[384655368,1757503846921,-234.2784914,0.00020006,2]
[384655369,1757503846930,-384.659086,0.00020187,2]
[384655370,1757503846939,-177.4763959,0.0002019,2]
[384655371,1757503846948,-13721.67567057,0.00020327,2]
[384655372,1757503846957,-317.1,0.0002033,2]
[384655373,1757503846966,-1000.0,0.00020455,20]
[384655374,1757503846976,-244.0,0.00020455,20]
[384655375,1757503846985,-3000.0,0.00020616,2]
[384655376,1757503846994,-13721.67567057,0.00020755,2]
[384655377,1757503847004,-195.1285312,0.00020883,2]
[384655378,1757503847013,-214.93727,0.00020983,2]
[384655379,1757503847022,-153.526621,0.00020983,2]
[384655380,1757503847031,-409.0,0.00020992,2]
[384655381,1757503847041,-157.0,0.00021096,2]
[384655382,1757503847050,-500.0,0.00021096,2]
[384655383,1757503847059,-317.1,0.00021108,2]
[384655384,1757503847069,-2435.91368394,0.0002116,2]
[384655385,1757503847078,-327.0,0.0002116,2]
[384655386,1757503847088,-327.0,0.0002116,2]
[384655387,1757503847098,-327.0,0.0002116,2]
[384655388,1757503847107,-382.96448575,0.0002116,2]
[384655389,1757503847117,-3000.0,0.0002117,2]
[384655390,1757503847126,-3000.0,0.0002118,2]
[384655391,1757503847135,-13721.67567057,0.00021182,2]
[384655392,1757503847144,-3000.0,0.0002119,2]
[384655393,1757503847154,-3000.0,0.000212,2]
[384655394,1757503847163,-3000.0,0.0002121,2]
[384655395,1757503847173,-3000.0,0.0002122,2]
[384655396,1757503847183,-3000.0,0.0002123,2]
[384655397,1757503847192,-3000.0,0.0002124,2]
[384655398,1757503847201,-3000.0,0.0002125,2]
[384655399,1757503847211,-3000.0,0.0002126,2]
[384655400,1757503847220,-3000.0,0.0002127,2]
[384655401,1757503847230,-3000.0,0.0002128,2]
[384655402,1757503847240,-3000.0,0.0002129,2]
[384655403,1757503847249,-3000.0,0.000213,2]
[384655404,1757503847259,-151.0,0.000213,3]
[384655405,1757503847269,-3000.0,0.0002131,2]
[384655406,1757503847278,-3000.0,0.0002132,2]
[384655407,1757503847287,-3000.0,0.0002133,2]
[384655408,1757503847297,-3000.0,0.0002134,2]
[384655409,1757503847307,-3000.0,0.0002135,2]
[384655410,1757503847316,-3000.0,0.0002136,2]
[384655411,1757503847422,-500.0,0.0002137,2]
[384655412,1757503847431,-3000.0,0.0002137,2]
[384655413,1757503847441,-3000.0,0.0002138,2]
[384655414,1757503847450,-3000.0,0.0002139,2]
[384655415,1757503847459,-3000.0,0.000214,2]
[384655416,1757503847479,-151.0,0.000214,3]
[384655417,1757503847490,-3000.0,0.0002141,2]
[384655418,1757503847500,-3000.0,0.0002142,2]
[384655419,1757503847511,-3000.0,0.0002143,2]
[384655420,1757503847520,-4081.050713,0.0002144,2]
[384655421,1757503847530,-13721.67567057,0.0002161,2]
[384655422,1757503847540,-500.0,0.00021644,2]
[384655423,1757503847550,-3000.0,0.00021712,2]
[384655424,1757503847560,-317.1,0.00021887,3]
[384655425,1757503847569,-368.104944,0.00021918,2]
[384655426,1757503847579,-151.0,0.00021918,2]
[384655427,1757503847590,-151.0,0.00021918,2]
[384655428,1757503847599,-151.0,0.00021918,2]
[384655429,1757503847609,-151.0,0.00021918,2]
[384655430,1757503847619,-500.0,0.00021918,2]
[384655431,1757503847629,-500.0,0.00021973,2]
[384655432,1757503847639,-521.01237101,0.00021973,2]
[384655433,1757503847650,-3416.14,0.00022,7]
[384655434,1757503847660,-102004.03,0.00022,7]
[384655435,1757503847669,-355.53810129,0.00022,2]
[384655436,1757503847679,-6149.67,0.00022,7]
[384655437,1757503847688,-168.3682747,0.00022,10]
[384655438,1757503847698,-555.12233593,0.00022,7]
[384655439,1757503847708,-1161.3220833,0.00022,3]
[384655440,1757503847718,-6383.17,0.00022,7]
[384655441,1757503847728,-160.0,0.00022,7]
[384655442,1757503847738,-530.87637315,0.00022,7]
[384655443,1757503847747,-154.0,0.00022,2]
[384655444,1757503847757,-200.0,0.00022,2]
[384655445,1757503847767,-203.30414021,0.00022,7]
[384655446,1757503847777,-13721.67567057,0.00022037,2]
[384655447,1757503847786,-234.2784914,0.00022142,2]
[384655448,1757503847796,-154.0,0.00022192,7]
[384655449,1757503847806,-500.0,0.00022192,2]
[384655450,1757503847816,-13721.67567057,0.00022464,2]
[384655451,1757503847826,-500.0,0.00022466,2]
[384655452,1757503847835,-1014.49592766,0.000225,2]
[384655453,1757503847845,-1000.0,0.000225,20]
[384655454,1757503847854,-492.0,0.000225,20]
[384655455,1757503847864,-1000.0,0.00022521,2]
[384655456,1757503847874,-151.0,0.000226,5]
[384655457,1757503847883,-317.1,0.00022665,3]
[384655458,1757503847893,-603.73575278,0.00022692,7]
[384655459,1757503847903,-151.0,0.000227,10]
[384655460,1757503847912,-508.0,0.0002274,2]
[384655461,1757503847922,-3000.0,0.00022808,2]
[384655462,1757503847931,-168.0,0.0002286,2]
[384655463,1757503847941,-13721.67567057,0.00022892,2]
[384655464,1757503847950,-214.93727,0.000229,3]
[384655465,1757503847960,-214.93727,0.00022982,2]
[384655466,1757503847970,-153.526621,0.00022982,2]
[384655467,1757503847979,-2006.45412611,0.00023,2]
[384655468,1757503847989,-20162.65614168,0.00023,2]
[384655469,1757503847999,-2951.37466975,0.00023,2]
[384655470,1757503848009,-154.0,0.00023014,7]
[384655471,1757503848019,-1500.0,0.00023068,2]
[384655472,1757503848029,-168.0,0.00023167,2]
[384655473,1757503848039,-168.0,0.00023168,2]
[384655474,1757503848048,-306.44933352,0.00023171,2]
[384655475,1757503848058,-168.0,0.00023225,2]
[384655476,1757503848068,-402.36632722,0.00023287,2]
[384655477,1757503848078,-306.88178643,0.00023287,2]
[384655478,1757503848088,-151.0,0.00023288,7]
[384655479,1757503848098,-151.0,0.00023288,7]
[384655480,1757503848108,-13721.67567057,0.00023319,2]
[384655481,1757503848118,-4000.0,0.00023333,4]
[384655482,1757503848128,-168.0,0.00023346,2]
[384655483,1757503848138,-168.0,0.00023393,2]
[384655484,1757503848148,-1000.0,0.00023404,5]
[384655485,1757503848158,-317.1,0.00023443,4]
[384655486,1757503848168,-214.93727,0.00023485,3]
[384655487,1757503848179,-153.526621,0.00023485,3]
[384655488,1757503848188,-6383.17,0.000236,7]
[384655489,1757503848199,-2002.73666896,0.00023616,2]
[384655490,1757503848208,-13721.67567057,0.00023747,2]
[384655491,1757503848220,-151.0,0.00023747,7]
[384655492,1757503848230,-233.08191698,0.000239,3]
[384655493,1757503848240,-846.88337432,0.000239,3]
[384655494,1757503848249,-203.30414021,0.000239,3]
[384655495,1757503848259,-217.67150996,0.000239,3]
[384655496,1757503848270,-500.0,0.00023973,2]
[384655497,1757503848280,-409.0,0.00023992,2]
[384655498,1757503848290,-102004.03,0.00024,7]
[384655499,1757503848299,-6149.67,0.00024,7]
[384655500,1757503848309,-12267.65553158,0.00024,15]
[384655501,1757503848318,-7056.06675138,0.00024,7]
[384655502,1757503848327,-174.0,0.00024,3]
[384655503,1757503848337,-174.0,0.00024,3]
[384655504,1757503848347,-174.0,0.00024,3]
[384655505,1757503848356,-174.0,0.00024,3]
[384655506,1757503848366,-174.24106029,0.00024,3]
[384655507,1757503848376,-151.0,0.00024,3]
[384655508,1757503848386,-151.0,0.00024,3]
[384655509,1757503848395,-151.0,0.00024,3]
[384655510,1757503848405,-151.0,0.00024,3]
[384655511,1757503848414,-151.0,0.00024,3]
[384655512,1757503848424,-151.0,0.00024,3]
[384655513,1757503848434,-151.0,0.00024,3]
[384655514,1757503848444,-151.0,0.00024,3]
[384655515,1757503848453,-151.0,0.00024,3]
[384655516,1757503848463,-151.0,0.00024,3]
[384655517,1757503848473,-151.0,0.00024,3]
[384655518,1757503848483,-151.0,0.00024,3]
[384655519,1757503848492,-151.0,0.00024,3]
[384655520,1757503848502,-151.0,0.00024,3]
[384655521,1757503848511,-151.0,0.00024,3]
[384655522,1757503848522,-151.0,0.00024,3]
[384655523,1757503848531,-151.0,0.00024,3]
[384655524,1757503848541,-151.0,0.00024,3]
[384655525,1757503848550,-151.0,0.00024,3]
[384655526,1757503848559,-151.0,0.00024,3]
[384655527,1757503848568,-151.0,0.00024,3]
[384655528,1757503848578,-151.0,0.00024,3]
[384655529,1757503848587,-151.0,0.00024,3]
[384655530,1757503848597,-151.0,0.00024,3]
[384655531,1757503848606,-151.0,0.00024,3]
[384655532,1757503848616,-151.0,0.00024,3]
[384655533,1757503848626,-171.87811048,0.00024,3]
[384655534,1757503848637,-151.0,0.00024,3]
[384655535,1757503848646,-151.0,0.00024,3]
[384655536,1757503848656,-151.0,0.00024,3]
[384655537,1757503848665,-151.0,0.00024,3]
[384655538,1757503848675,-151.0,0.00024,3]
[384655539,1757503848684,-151.0,0.00024,3]
[384655540,1757503848694,-151.0,0.00024,3]
[384655541,1757503848704,-151.0,0.00024,3]
[384655542,1757503848713,-151.0,0.00024,3]
[384655543,1757503848723,-151.0,0.00024,3]
[384655544,1757503848733,-151.0,0.00024,3]
[384655545,1757503848742,-151.0,0.00024,3]
[384655546,1757503848752,-151.0,0.00024,3]
[384655547,1757503848762,-151.0,0.00024,3]
[384655548,1757503848771,-151.0,0.00024,3]
[384655549,1757503848781,-151.0,0.00024,3]
[384655550,1757503848790,-151.0,0.00024,3]
[384655551,1757503848800,-151.0,0.00024,3]
[384655552,1757503848809,-151.0,0.00024,3]
[384655553,1757503848822,-151.0,0.00024,3]
[384655554,1757503848832,-151.0,0.00024,3]
[384655555,1757503848842,-151.0,0.00024,3]
[384655556,1757503848851,-151.0,0.00024,3]
[384655557,1757503848862,-151.0,0.00024,3]
[384655558,1757503848872,-151.0,0.00024,3]
[384655559,1757503848882,-151.0,0.00024,3]
[384655560,1757503848891,-151.0,0.00024,3]
[384655561,1757503848900,-151.0,0.00024,3]
[384655562,1757503848910,-151.0,0.00024,3]
[384655563,1757503848920,-151.0,0.00024,3]
[384655564,1757503848930,-151.0,0.00024,3]
[384655565,1757503848939,-151.0,0.00024,3]
[384655566,1757503848949,-151.0,0.00024,3]
[384655567,1757503848958,-1304.0,0.00024,3]
[384655568,1757503848968,-1304.0,0.00024,3]
[384655569,1757503848978,-1304.0,0.00024,3]
[384655570,1757503848987,-1304.0,0.00024,3]
[384655571,1757503848997,-1304.0,0.00024,3]
[384655572,1757503849006,-1304.0,0.00024,3]
[384655573,1757503849016,-1304.0,0.00024,3]
[384655574,1757503849027,-1434.83621197,0.00024,3]
[384655575,1757503849038,-233.08191698,0.00024,7]
[384655576,1757503849047,-233.08191698,0.00024,3]
[384655577,1757503849056,-846.88337432,0.00024,7]
[384655578,1757503849066,-846.88337432,0.00024,3]
[384655579,1757503849075,-203.30414021,0.00024,3]
[384655580,1757503849084,-217.67150996,0.00024,7]
[384655581,1757503849094,-217.67150996,0.00024,3]
[384655582,1757503849103,-214.93727,0.0002407,3]
[384655583,1757503849112,-153.526621,0.0002407,3]
[384655584,1757503849122,-3416.14,0.000241,7]
[384655585,1757503849131,-266.94720612,0.000241,2]
[384655586,1757503849141,-160.57800703,0.00024137,2]
[384655587,1757503849150,-161.0,0.00024164,7]
[384655588,1757503849159,-13721.67567057,0.00024174,2]
[384655589,1757503849169,-317.1,0.00024222,4]
[384655590,1757503849178,-153.526621,0.0002425,14]
[384655591,1757503849188,-234.2784914,0.00024278,2]
[384655592,1757503849198,-168.0,0.00024298,2]
[384655593,1757503849207,-168.0,0.00024437,2]
[384655594,1757503849217,-153.526621,0.000245,14]
[384655595,1757503849226,-168.0,0.00024506,2]
[384655596,1757503849235,-1000.0,0.00024521,2]
[384655597,1757503849245,-2000.0,0.000246,2]
[384655598,1757503849254,-2000.0,0.000246,2]
[384655599,1757503849264,-13721.67567057,0.00024602,2]
[384655600,1757503849273,-1522.77476,0.0002464,5]
[384655601,1757503849285,-52090.85078347,0.0002465,2]
[384655603,1757503900634,-179.82183482,0.00013498,2]
[384655606,1757503917034,179.82183482,0.000145,9]
[384655607,1757503935029,-247.0321659,0.00013498,2]
[384655608,1757503940755,247.0321659,0.00013363,2]
[384655609,1757503959757,350.0,0.00013497,2]
[384655610,1757503959787,215.584805,0.00013497,2]
[384655611,1757503959824,500.0,0.00013497,2]
[384655612,1757503959860,362.06193694,0.00013497,2]
[384655613,1757503979806,-161.23327438,0.00013498,2]
[384655614,1757503983482,280.339467,0.00027397,120]
[384655615,1757503986083,161.23327438,0.00013363,2]
[384655618,1757504024852,-167.3945075,0.00013498,2]
[384655619,1757504030074,500.0,0.00013497,2]
[384655620,1757504030579,-330.94100028,0.00013498,2]
[384655621,1757504032461,167.3945075,0.00013363,2]
[384655622,1757504035518,156.18566094,0.00013498,2]
[384655623,1757504035922,-227.00801504,0.00013498,2]
[384655625,1757504055398,557.94901532,0.00013363,2]
[384655626,1757504055902,-293.90784349,0.00013498,2]
[384655628,1757504069705,-200.0,0.00013498,2]
[384655629,1757504080266,493.90784349,0.00013363,2]
[384655638,1757504108374,1200.0,0.00013497,2]
[384655639,1757504114738,-339.74660172,0.00013498,2]
[384655640,1757504126122,339.74660172,0.00013363,2]
[384655641,1757504151725,500.0,0.00013497,2]
[384655642,1757504159826,-167.33877011,0.00013498,2]
[384655643,1757504171474,156.18566093,0.00013498,2]
[384655644,1757504172014,-181.34679544,0.00013498,2]
[384655645,1757504172798,167.33877011,0.00013363,2]
[384655646,1757504196238,181.34679544,0.00013363,2]
[384655647,1757504204759,-202.95413605,0.00013498,2]
[384655648,1757504219488,202.95413605,0.00013363,2]
[384655649,1757504249826,-169.05899972,0.00013498,2]
[384655650,1757504261673,207.0,0.00025,120]
[384655652,1757504273228,500.0,0.00013497,2]
[384655653,1757504282593,169.0,0.00013497,2]
[384655654,1757504283101,-166.31394601,0.00013498,2]
[384655658,1757504287676,166.31394601,0.000145,9]
[384655677,1757504294781,-292.01567721,0.00013498,2]
[384655678,1757504297368,171.80422705,0.00013498,2]
[384655679,1757504312152,292.01567721,0.000145,9]
[384655680,1757504339805,-438.43093488,0.00013498,2]
[384655681,1757504358079,438.43093488,0.00013363,2]
[384655682,1757504384706,-262.1340801,0.00013498,2]
[384655683,1757504396839,500.0,0.00013497,2]
[384655689,1757504404973,1229.49125945,0.00013363,2]
[384655690,1757504405454,-371.8375455,0.00013498,2]
[384655691,1757504428356,532.3624049,0.00013363,2]
[384655692,1757504428381,806.83231995,0.00013363,2]
[384655693,1757504428853,-440.13023696,0.00013498,2]
[384655694,1757504452578,1407.48741631,0.00013363,2]
[384655695,1757504457637,165.11055584,0.00013498,2]
[384655696,1757504476223,967.35717935,0.00013363,2]
[384655697,1757504476726,-242.45773546,0.00013498,2]
[384655698,1757504500269,242.45773546,0.00013363,2]
[384655699,1757504519011,500.0,0.00013497,2]
[384655700,1757504519814,-519.90564708,0.00013498,2]
[384655701,1757504527525,1962.30755234,0.00013363,2]
[384655703,1757504564800,-166.5117253,0.00013498,2]
[384655705,1757504573705,166.5117253,0.00013363,2]
[384655706,1757504609873,-300.0,0.00013498,2]
[384655707,1757504622895,300.0,0.00013363,2]
[384655708,1757504632935,165.11055584,0.00013498,2]
[384655709,1757504640776,500.0,0.00013497,2]
[384655710,1757504641390,-307.96424112,0.00013498,2]
[384655711,1757504651990,177.01210144,0.00013497,2]
[384655712,1757504652609,-186.99373193,0.00013498,2]
[384655714,1757504691624,163.84200877,0.00013093,2]
[384655715,1757504702506,300.0,0.00013497,2]
[384655719,1757504707610,1200.0,0.00013497,2]
[384655720,1757504708097,-156.68162977,0.00013498,2]
[384655728,1757504744739,-290.13616409,0.00013498,2]
[384655730,1757504754376,290.13616409,0.00013497,2]
[384655732,1757504762128,500.0,0.00013497,2]
[384655733,1757504762558,-172.68016149,0.00013498,2]
[384655734,1757504763429,185.84468531,0.00013497,2]
[384655735,1757504763453,114.15531469,0.00013497,2]
[384655739,1757504789759,-274.36274418,0.00013498,2]
[384655740,1757504803410,206.95714844,0.00013498,2]
[384655741,1757504826391,-9776.17105708,0.00013498,2]
[384655742,1757504833610,1200.0,0.00013497,2]
[384655743,1757504834031,-291.35041951,0.00013498,2]
[384655746,1757504879781,-255.9724317,0.00013498,2]
[384655747,1757504882741,274.0,0.00013497,2]
[384655748,1757504885063,500.0,0.00013497,2]
[384655750,1757504917313,300.0,0.00013363,2]
[384655752,1757504924716,-512.76360136,0.00013498,2]
[384655753,1757504933372,300.0,0.00013363,2]
[384655754,1757504941396,300.0,0.00013363,2]
[384655755,1757504956436,-179.93467193,0.00013498,2]
[384655756,1757504957008,300.0,0.00013363,2]
[384655757,1757504965624,300.0,0.00013363,2]
[384655758,1757504981961,169.72035555,0.00013363,2]
[384655759,1757504990042,723.97151967,0.00013363,2]
[384655760,1757504993516,181.08750492,0.00013498,2]
[384655761,1757505003918,300.0,0.00013497,2]
[384655762,1757505006581,500.0,0.00013497,2]
[384655763,1757505007579,513.0,0.00013497,2]
[384655798,1757505031775,-50000.112652,0.00013498,2]
[384655800,1757505031788,-4300.52659908,0.00013498,2]
[384655922,1757505037756,-6937.47991001,0.00013498,2]
[384655925,1757505037769,-6510.86675222,0.00013498,2]
[384655927,1757505037782,-12987.84209343,0.00013498,2]
[384655969,1757505039803,-1585.98788627,0.00013498,2]
[384655971,1757505040190,-0.04962918,0.00013498,2]
[384655972,1757505040401,-3562.44808211,0.00013498,2]
[384655973,1757505040415,-8164.7462704,0.00013498,2]
[384655974,1757505040429,-36553.16184849,0.00013498,2]
[384655975,1757505040443,-13023.52416762,0.00013498,2]
[384655982,1757505042944,-105017.5744829,0.00013498,2]
[384655983,1757505042954,-510.58576926,0.00013598,2]
[384655984,1757505042963,-500.0,0.00013673,2]
[384655985,1757505042972,-469.75699858,0.00013673,2]
[384655986,1757505042982,-480.0,0.00013698,2]
[384655987,1757505042991,-482.14181203,0.00013698,2]
[384655988,1757505043001,-480.0,0.00013698,2]
[384655989,1757505043010,-480.0,0.00013698,2]
[384655990,1757505043021,-480.0,0.00013698,2]
[384655991,1757505043031,-483.81622415,0.00013698,2]
[384655992,1757505043041,-480.0,0.00013698,2]
[384655993,1757505043052,-480.0,0.00013698,2]
[384655994,1757505043062,-524.18976744,0.00013698,2]
[384655995,1757505043073,-480.0,0.00013698,2]
[384655996,1757505043083,-480.0,0.00013698,2]
[384655997,1757505043094,-480.0,0.00013698,2]
[384655998,1757505043103,-480.0,0.00013698,2]
[384655999,1757505043113,-480.0,0.00013698,2]
[384656000,1757505043124,-480.0,0.00013698,2]
[384656001,1757505043133,-473.1658546,0.00013698,2]
[384656002,1757505043142,-480.0,0.00013698,2]
[384656003,1757505043151,-480.0,0.00013698,2]
[384656004,1757505043161,-486.56359179,0.00013698,2]
[384656005,1757505043170,-484.53719561,0.00013698,2]
[384656006,1757505043180,-480.0,0.00013698,2]
[384656007,1757505043189,-480.0,0.00013698,2]
[384656008,1757505043199,-530.13183935,0.00013698,2]
[384656009,1757505043208,-480.0,0.00013698,2]
[384656010,1757505043217,-480.0,0.00013698,2]
[384656011,1757505043227,-480.0,0.00013698,2]
[384656012,1757505043236,-480.0,0.00013698,2]
[384656013,1757505043246,-480.0,0.00013698,2]
[384656014,1757505043255,-480.0,0.00013698,2]
[384656015,1757505043265,-480.0,0.00013698,2]
[384656016,1757505043274,-480.0,0.00013698,2]
[384656017,1757505043284,-480.0,0.00013698,2]
[384656018,1757505043293,-480.0,0.00013698,2]
[384656019,1757505043302,-480.0,0.00013698,2]
[384656020,1757505043312,-480.0,0.00013698,2]
[384656021,1757505043321,-480.0,0.00013698,2]
[384656022,1757505043331,-484.42089267,0.00013698,2]
[384656023,1757505043341,-480.0,0.00013698,2]
[384656024,1757505043354,-480.0,0.00013698,2]
[384656025,1757505043364,-481.70986549,0.00013698,2]
[384656026,1757505043374,-482.18888764,0.00013698,2]
[384656027,1757505043383,-480.0,0.00013698,2]
[384656028,1757505043395,-480.0,0.00013698,2]
[384656029,1757505043404,-482.67254381,0.00013698,2]
[384656030,1757505043413,-482.06237796,0.00013698,2]
[384656031,1757505043422,-484.89244816,0.00013698,2]
[384656032,1757505043432,-480.0,0.00013698,2]
[384656033,1757505043442,-480.0,0.00013698,2]
[384656034,1757505043451,-572.91453078,0.00013698,2]
[384656035,1757505043462,-480.0,0.00013698,2]
[384656036,1757505043472,-480.0,0.00013698,2]
[384656037,1757505043482,-480.0,0.00013698,2]
[384656038,1757505043491,-500.0,0.00013698,2]
[384656039,1757505043500,-480.0,0.00013698,2]
[384656040,1757505043509,-480.0,0.00013698,2]
[384656041,1757505043518,-480.0,0.00013698,2]
[384656042,1757505043527,-480.0,0.00013698,2]
[384656043,1757505043536,-480.0,0.00013698,2]
[384656044,1757505043545,-480.0,0.00013698,2]
[384656045,1757505043556,-480.0,0.00013698,2]
[384656046,1757505043566,-480.0,0.00013698,2]
[384656047,1757505043576,-480.0,0.00013698,2]
[384656048,1757505043585,-480.0,0.00013698,2]
[384656049,1757505043594,-480.0,0.00013698,2]
[384656050,1757505043603,-480.0,0.00013698,2]
[384656051,1757505043612,-480.0,0.00013698,2]
[384656052,1757505043622,-483.60409814,0.00013698,2]
[384656053,1757505043632,-480.56681057,0.00013698,2]
[384656054,1757505043642,-480.0,0.00013698,2]
[384656055,1757505043651,-480.0,0.00013698,2]
[384656056,1757505043662,-482.79201266,0.00013698,2]
[384656057,1757505043673,-480.0,0.00013698,2]
[384656058,1757505043684,-480.0,0.00013698,2]
[384656059,1757505043694,-480.0,0.00013698,2]
[384656060,1757505043703,-481.47963594,0.00013698,2]
[384656061,1757505043713,-480.0,0.00013698,2]
[384656062,1757505043722,-480.0,0.00013698,2]
[384656063,1757505043731,-480.0,0.00013698,2]
[384656064,1757505043740,-480.0,0.00013698,2]
[384656065,1757505043750,-480.0,0.00013698,2]
[384656066,1757505043759,-482.49203632,0.00013698,2]
[384656067,1757505043769,-480.0,0.00013698,2]
[384656068,1757505043778,-480.0,0.00013698,2]
[384656069,1757505043788,-480.0,0.00013698,2]
[384656070,1757505043798,-480.0,0.00013698,2]
[384656071,1757505043808,-480.0,0.00013698,2]
[384656072,1757505043819,-481.3753523,0.00013698,2]
[384656073,1757505043830,-480.0,0.00013698,2]
[384656074,1757505043840,-480.0,0.00013698,2]
[384656075,1757505043850,-480.0,0.00013698,2]
[384656076,1757505043859,-480.0,0.00013698,2]
[384656077,1757505043869,-480.0,0.00013698,2]
[384656078,1757505043878,-480.0,0.00013698,2]